bitfinex/quotes_ETHUSD_20211001
["timestamp","ask_amount","ask_price","bid_price","bid_amount"]
[1633075296126,13.93393708,3098.6,3098.1,6.456]
[1633075296728,4.84488,3098.2,3098.1,6.456]
[1633075297726,5.08216589,3098.2,3098.1,6.456]
[1633075297926,5.08216589,3098.2,3098.1,0.66297548]
[1633075297927,10.52616589,3098.2,3098.1,0.66297548]
[1633075298131,5.4,3098.1,3097.3,0.006]
[1633075298329,8.02572772,3098.2,3097.3,0.006]
[1633075298630,0.89357948,3098.2,3097.3,0.006]
[1633075298830,0.92768136,3097.4,3097.3,0.006]
[1633075300229,4.87827633,3097.5,3097.3,0.006]
[1633075300433,4.84566,3097.5,3097.3,0.006]
[1633075301435,4.84566,3097.5,3097.1,0.87368491]
[1633075301835,0.11916908,3097.1,3096.5,0.003]
[1633075302036,15.11916908,3097.1,3096.5,0.003]
[1633075302234,15.11916908,3097.1,3096.4,0.003]
[1633075302235,3.2317322,3096.9,3096.4,0.006]
[1633075302436,3.2317322,3096.9,3095.9,0.009]
[1633075302437,6.4633622,3096.9,3095.9,0.009]
[1633075302635,6.4633622,3096.9,3096.0,0.006]
[1633075303038,0.80944779,3096.8,3096.1,0.8055857]
[1633075303239,0.80944779,3096.8,3096.2,3.23084]
[1633075303240,0.23787019,3096.8,3096.2,3.23084]
[1633075303437,8.0,3097.0,3096.2,3.23084]
[1633075303438,6.381e-05,3097.1,3096.8,0.03575713]
[1633075303637,6.381e-05,3097.1,3096.7,0.02505371]
[1633075303638,0.003,3098.0,3097.5,1.23197658]
[1633075303837,6.4623507,3098.2,3097.5,1.23197658]
[1633075303838,0.03286471,3098.3,3098.2,4.0915237]
[1633075304038,0.003,3098.5,3098.2,9.10656793]
[1633075304237,0.003,3099.0,3098.4,0.02447626]
[1633075304437,0.003,3099.0,3098.8,1.08414912]
[1633075304638,0.003,3099.0,3098.8,6.4554]
[1633075305639,0.003,3099.0,3098.8,7.7494]
[1633075305842,0.003,3099.0,3098.8,10.92290773]
[1633075306041,0.003,3099.0,3098.8,7.61577153]
[1633075306241,0.003,3099.0,3098.8,7.56632253]
[1633075306440,0.003,3099.0,3098.8,2.20882772]
[1633075307443,0.003,3099.0,3098.8,2.91916549]
[1633075307641,0.003,3099.0,3098.8,2.20882772]
[1633075308744,0.11997543,3098.9,3098.8,3.11755579]
[1633075308943,0.11997543,3098.9,3098.8,2.20882772]
[1633075309343,0.00185817,3098.9,3098.8,2.20882772]
[1633075309543,3.22829,3099.4,3098.8,2.20882772]
[1633075309544,4.218025,3099.7,3099.6,2.39753024]
[1633075309744,11.34642929,3100.0,3099.7,6.45]
[1633075309943,11.34642929,3100.0,3099.8,3.34656081]
[1633075310344,11.34642929,3100.0,3099.7,0.050004]
[1633075310542,11.34642929,3100.0,3099.8,3.22648]
[1633075311545,11.34642929,3100.0,3099.8,8.22648]
[1633075311746,11.34642929,3100.0,3099.9,1.21152716]
[1633075312146,11.34642929,3100.0,3099.9,2.50552716]
[1633075312347,11.34642929,3100.0,3099.9,1.294]
[1633075312951,11.34642929,3100.0,3099.8,3.22648]
[1633075313352,19.34642929,3100.0,3099.9,1.294]
[1633075313552,11.34642929,3100.0,3099.8,4.11864189]
[1633075313750,19.34642929,3100.0,3099.8,4.11864189]
[1633075313950,11.34642929,3100.0,3099.8,4.11864189]
[1633075314149,11.34642929,3100.0,3099.8,3.22648]
[1633075314150,19.46419644,3100.0,3099.8,3.22648]
[1633075314350,19.46419644,3100.0,3099.6,3.50076181]
[1633075314549,8.0,3099.9,3099.6,3.50076181]
[1633075314752,11.46419644,3100.0,3099.7,4.32897902]
[1633075314753,11.34642929,3100.0,3099.7,4.32897902]
[1633075314950,11.34642929,3100.0,3099.7,3.24159717]
[1633075315153,11.34642929,3100.0,3099.8,6.03842983]
[1633075315549,11.34642929,3100.0,3099.7,3.43770267]
[1633075315550,11.34642929,3100.0,3099.7,0.20661815]
[1633075315751,11.34642929,3100.0,3099.6,3.50076181]
[1633075315949,11.37995581,3100.0,3099.6,3.50076181]
[1633075316155,19.37995581,3100.0,3099.6,3.50076181]
[1633075316352,11.34642929,3100.0,3099.6,3.50076181]
[1633075316551,0.97507965,3099.7,3099.6,3.50076181]
[1633075316750,0.03252859,3099.8,3099.6,3.50076181]
[1633075316951,19.34642929,3100.0,3099.6,3.50076181]
[1633075317151,19.38600399,3100.0,3099.7,3.10651159]
[1633075317353,19.38600399,3100.0,3099.6,3.50076181]
[1633075317354,19.38600399,3100.0,3099.8,3.05525037]
[1633075317551,19.38600399,3100.0,3099.8,5.26407809]
[1633075317750,19.38600399,3100.0,3099.8,2.20882772]
[1633075317950,19.38600399,3100.0,3099.9,1.04670758]
[1633075318151,19.38600399,3100.0,3099.8,2.20882772]
[1633075319251,11.38600399,3100.0,3099.9,11.67524131]
[1633075319452,11.38600399,3100.0,3099.9,3.08762431]
[1633075319453,11.34642929,3100.0,3099.9,3.08762431]
[1633075320051,11.34642929,3100.0,3099.9,0.056383]
[1633075320252,11.34642929,3100.0,3099.9,0.97432138]
[1633075320452,11.34642929,3100.0,3099.8,7.20882772]
[1633075320654,11.34642929,3100.0,3099.9,6.3]
[1633075320854,29.93724311,3100.3,3100.0,9.84233236]
[1633075321056,0.02048878,3102.8,3102.7,1.28709459]
[1633075321258,1.77275166,3103.4,3102.7,1.28709459]
[1633075321259,0.05353055,3103.8,3102.9,0.84692938]
[1633075321455,5.11487725,3104.2,3103.9,1.81708609]
[1633075321456,0.4847001,3104.2,3103.9,1.81708609]
[1633075321655,0.006,3104.4,3103.9,1.81708609]
[1633075321656,4.83509,3104.8,3104.5,0.89500339]
[1633075321857,4.83509,3104.8,3104.5,0.9377]
[1633075322055,8.6,3104.3,3103.4,0.012]
[1633075322254,3.2237687,3104.7,3103.8,1.69269408]
[1633075322255,1.2753,3103.9,3103.8,1.69269408]
[1633075322459,1.2753,3103.9,3102.1,0.02587997]
[1633075322655,0.003,3103.0,3102.8,0.92194772]
[1633075322856,1.2438,3103.9,3103.8,6.203]
[1633075323057,0.003,3104.0,3103.9,9.3953]
[1633075323256,0.003,3104.0,3103.9,0.82073306]
[1633075323455,0.003,3104.0,3103.9,1.04987733]
[1633075323654,0.003,3104.0,3103.9,0.0983]
[1633075323859,0.003,3104.0,3103.9,0.8625074]
[1633075324056,0.003,3104.0,3103.9,1.16998831]
[1633075324256,3.020171,3105.5,3105.2,8.6]
[1633075324459,0.006,3105.9,3105.5,8.6]
[1633075324460,0.006,3105.8,3105.5,8.6]
[1633075324658,0.02266667,3106.1,3105.9,8.86220606]
[1633075324856,0.009,3106.5,3106.1,9.78563795]
[1633075325054,0.009,3106.5,3106.0,0.58481414]
[1633075325055,0.009,3106.5,3106.0,0.79449874]
[1633075325258,0.009,3106.5,3106.1,0.012]
[1633075325456,0.009,3106.5,3106.1,0.01302181]
[1633075325655,0.009,3106.5,3106.1,0.1022351]
[1633075325855,8.6,3105.7,3105.3,2.76307013]
[1633075326057,2.01513561,3105.6,3105.3,0.0962351]
[1633075326257,0.02525703,3105.5,3105.3,0.0962351]
[1633075326460,3.22396,3105.1,3104.0,0.003]
[1633075326656,3.22396,3105.1,3103.0,0.003]
[1633075326657,2.00529482,3104.1,3103.7,0.003]
[1633075326856,2.00529482,3104.1,3103.5,0.003]
[1633075326857,1.37231247,3105.0,3103.5,0.006]
[1633075327056,1.37231247,3105.0,3103.4,0.047948]
[1633075327057,0.003,3105.0,3103.4,0.047948]
[1633075327259,0.003,3105.0,3103.0,0.47362224]
[1633075327457,4.83722,3104.1,3103.5,0.006]
[1633075327656,4.83722,3104.1,3103.1,0.006]
[1633075327856,4.83722,3104.1,3102.2,0.02810832]
[1633075327857,4.83722,3104.1,3102.3,0.009]
[1633075328056,4.83722,3104.1,3102.2,0.31712427]
[1633075328057,0.90619301,3103.3,3102.5,0.012]
[1633075328260,3.7774375,3103.2,3102.5,0.009]
[1633075328557,0.90619301,3103.3,3102.3,0.012]
[1633075328756,0.90619301,3103.3,3102.3,0.03773135]
[1633075328955,0.90619301,3103.3,3102.3,0.02573135]
[1633075329161,1.92595233,3103.5,3102.4,0.012]
[1633075329358,1.0,3103.6,3102.4,0.012]
[1633075329958,1.0,3103.6,3102.4,0.02494811]
[1633075330158,0.79964171,3103.3,3102.6,0.7559973]
[1633075330421,0.79964171,3103.3,3102.6,1.29577685]
[1633075330559,0.79964171,3103.3,3102.7,0.009]
[1633075331159,0.79964171,3103.3,3102.8,0.04739086]
[1633075331559,2.294,3103.1,3102.9,0.009]
[1633075331763,1.0,3103.1,3102.9,0.009]
[1633075331961,1.0,3103.1,3101.5,4.3457]
[1633075331962,8.6,3103.0,3102.4,0.003]
[1633075332160,8.6,3103.0,3101.7,0.006]
[1633075332161,3.93164633,3102.9,3101.7,0.006]
[1633075332363,11.54977571,3103.0,3101.8,0.003]
[1633075332364,0.91883996,3102.3,3101.8,0.003]
[1633075332560,0.91883996,3102.3,3101.2,3.35454368]
[1633075332561,1.0,3102.4,3101.2,0.009]
[1633075332758,1.0,3102.4,3101.8,0.90106176]
[1633075332960,1.294,3102.1,3101.1,0.009]
[1633075333159,1.0,3102.4,3101.9,0.006]
[1633075333360,1.0,3102.4,3100.9,0.012]
[1633075333559,1.17167607,3102.3,3100.8,0.012]
[1633075333860,1.17167607,3102.3,3101.5,1.294]
[1633075333861,1.7,3102.3,3101.5,1.294]
[1633075334058,1.7,3102.3,3101.3,0.02587061]
[1633075334059,1.294,3101.9,3101.2,0.28226489]
[1633075334263,1.7,3102.3,3101.6,0.006]
[1633075334264,3.89930861,3102.2,3101.6,0.006]
[1633075334464,3.89930861,3102.2,3101.3,0.009]
[1633075334465,3.62744762,3102.2,3101.3,0.009]
[1633075334662,5.18453528,3102.2,3100.2,0.015]
[1633075334863,0.26557594,3102.1,3100.2,0.015]
[1633075335062,5.18453528,3102.2,3100.2,1.57647733]
[1633075335063,1.18717312,3102.0,3100.2,1.57647733]
[1633075335261,1.18717312,3102.0,3100.3,0.32629836]
[1633075335262,0.7146683,3101.5,3100.3,0.32629836]
[1633075335464,0.7146683,3101.5,3100.3,0.015]
[1633075335465,3.53302403,3101.4,3100.3,0.015]
[1633075335662,0.7146683,3101.5,3100.4,0.015]
[1633075335862,0.30503485,3101.3,3100.4,0.015]
[1633075336061,0.96223632,3101.1,3100.2,0.015]
[1633075336263,0.79541179,3101.0,3100.4,0.97858831]
[1633075336462,0.30503485,3101.3,3100.5,7.02143229]
[1633075336662,0.00205491,3101.5,3100.5,7.05959622]
[1633075336865,0.00205491,3101.5,3100.6,0.012]
[1633075337265,0.00205491,3101.5,3100.6,0.46884086]
[1633075337462,0.00205491,3101.5,3101.4,0.82986666]
[1633075337862,0.00205491,3101.5,3101.4,1.43734879]
[1633075338063,0.00205491,3101.5,3101.4,0.83886666]
[1633075338262,1.29605491,3101.5,3101.4,0.009]
[1633075338465,11.30205491,3101.5,3101.4,0.009]
[1633075338663,11.30413364,3101.5,3100.6,3.86745112]
[1633075338865,11.30413364,3101.5,3100.7,8.22591]
[1633075339071,0.00413364,3101.5,3100.7,8.70778366]
[1633075339268,0.00413364,3101.5,3100.8,26.40175736]
[1633075339467,0.00413364,3101.5,3100.8,6.463]
[1633075339668,0.00413364,3101.5,3100.9,0.50355067]
[1633075340065,0.00413364,3101.5,3101.0,0.012]
[1633075341067,0.00413364,3101.5,3101.1,0.96318843]
[1633075341465,0.3090168,3101.5,3101.2,0.009]
[1633075342166,1.0,3102.4,3101.5,0.30488316]
[1633075342434,0.003,3103.5,3101.6,0.058851]
[1633075342567,0.003,3103.5,3103.0,0.079913]
[1633075342967,0.003,3103.5,3103.2,1.294]
[1633075343165,0.003,3103.5,3103.0,0.079913]
[1633075343166,0.003,3103.5,3103.4,9.48178458]
[1633075343366,0.003,3104.0,3103.4,15.93278458]
[1633075343567,0.003,3104.0,3103.6,3.3]
[1633075343768,0.003,3104.0,3103.8,1.38815517]
[1633075343968,0.003,3105.5,3104.0,0.22242271]
[1633075344168,0.003,3105.5,3104.4,9.65131837]
[1633075344169,1.00231168,3105.1,3104.4,9.65131837]
[1633075344372,1.00231168,3105.1,3104.4,6.451]
[1633075344770,1.00231168,3105.1,3104.4,6.8940039]
[1633075344977,0.90379547,3104.6,3104.4,6.8940039]
[1633075345171,0.90379547,3104.6,3104.4,6.451]
[1633075345574,0.027327,3105.5,3104.4,11.451]
[1633075345773,0.027327,3105.5,3104.4,6.451]
[1633075346175,1.29948992,3104.5,3104.4,6.451]
[1633075346374,0.00548992,3104.5,3104.4,6.451]
[1633075346873,0.00548992,3104.5,3103.5,0.003]
[1633075346874,13.86386568,3104.4,3103.5,0.003]
[1633075347076,0.59930631,3104.5,3102.0,0.003]
[1633075347077,11.08320651,3103.1,3102.0,0.003]
[1633075347274,11.08320651,3103.1,3102.8,0.003]
[1633075347275,12.72140651,3103.1,3102.8,0.003]
[1633075347478,20.72140651,3103.1,3101.9,0.009]
[1633075347676,20.72140651,3103.1,3101.7,0.009]
[1633075347677,0.74782585,3102.4,3101.7,0.009]
[1633075347976,0.74782585,3102.4,3101.5,0.30788316]
[1633075347977,0.02557619,3102.2,3101.5,0.30788316]
[1633075348174,3.97184868,3102.2,3101.5,0.30788316]
[1633075348374,0.02557619,3102.2,3101.5,0.30788316]
[1633075348574,1.0,3102.3,3101.5,0.30788316]
[1633075348976,1.294,3101.9,3101.5,0.30788316]
[1633075349174,1.0,3102.3,3101.5,0.30788316]
[1633075349375,1.74575059,3102.3,3101.7,0.75144273]
[1633075349575,1.0,3102.3,3101.7,0.75144273]
[1633075349774,0.003,3102.5,3101.7,0.75144273]
[1633075350176,0.003,3102.5,3101.7,1.3483394]
[1633075350374,0.003,3102.5,3101.8,5.0]
[1633075350576,0.003,3102.5,3102.3,0.80673924]
[1633075350774,0.003,3102.5,3102.0,0.50784675]
[1633075350976,0.88214312,3102.4,3101.8,5.53730936]
[1633075351174,0.003,3102.5,3101.9,6.4477]
[1633075351445,0.003,3102.5,3102.0,0.65276987]
[1633075351575,0.003,3102.5,3102.1,3.22435]
[1633075351774,0.003,3102.5,3102.1,4.21847798]
[1633075352174,0.003,3102.5,3102.4,9.20311015]
[1633075352376,0.003,3102.5,3102.1,4.21847798]
[1633075352580,0.003,3102.5,3102.1,9.21847798]
[1633075352775,11.08320651,3103.1,3102.1,9.21847798]
[1633075352776,11.08320651,3103.1,3102.2,3.15923131]
[1633075352977,11.08320651,3103.1,3102.9,0.079913]
[1633075353178,11.08320651,3103.1,3102.2,0.68301052]
[1633075353376,11.08320651,3103.1,3102.9,6.4477]
[1633075353575,11.08320651,3103.1,3102.9,4.7477]
[1633075354176,11.08320651,3103.1,3102.9,11.51804595]
[1633075354435,11.08320651,3103.1,3102.9,11.0417]
[1633075355376,11.08320651,3103.1,3102.9,11.63083742]
[1633075355579,1.0,3104.3,3103.1,8.79976966]
[1633075355781,0.00548992,3104.5,3103.5,1.38270706]
[1633075355980,0.00548992,3104.5,3103.7,3.2223049]
[1633075356178,0.00548992,3104.5,3103.7,0.58905036]
[1633075356379,0.00548992,3104.5,3103.8,4.7477]
[1633075356581,0.00237309,3103.9,3103.8,12.14638484]
[1633075356782,0.00237309,3103.9,3103.8,7.14638484]
[1633075356982,0.00237309,3103.9,3103.8,7.82115806]
[1633075357180,0.00237309,3103.9,3103.8,4.7477]
[1633075357580,0.00237309,3103.9,3103.8,9.7477]
[1633075357980,0.30638067,3103.9,3103.8,9.7477]
[1633075358181,0.30638067,3103.9,3103.8,4.7477]
[1633075358379,0.30638067,3103.9,3103.8,6.0417]
[1633075358580,0.00237309,3103.9,3103.8,4.736481]
[1633075358779,0.00237309,3103.9,3103.1,17.03131406]
[1633075358780,3.86565247,3103.3,3103.1,5.37841406]
[1633075359379,4.65743992,3103.3,3103.1,5.37841406]
[1633075359580,3.86565247,3103.3,3103.1,5.37841406]
[1633075360179,4.58622119,3103.2,3103.1,5.22841406]
[1633075360447,4.58622119,3103.2,3102.7,0.003]
[1633075360448,2.26276159,3103.1,3102.7,0.003]
[1633075360581,3.79047773,3103.1,3102.7,0.003]
[1633075360882,3.79047773,3103.1,3102.1,0.053948]
[1633075360883,2.89047773,3103.1,3102.1,0.053948]
[1633075361080,2.89047773,3103.1,3102.1,0.70416861]
[1633075361280,0.76069456,3102.9,3102.2,0.97091813]
[1633075361479,0.76069456,3102.9,3102.2,0.006]
[1633075361680,0.86937809,3102.8,3102.1,0.59036795]
[1633075361880,2.89047773,3103.1,3102.1,0.047948]
[1633075362081,0.003,3103.0,3102.1,0.047948]
[1633075362683,0.003,3103.0,3102.1,8.272488]
[1633075362885,1.13844665,3102.9,3102.1,8.86259395]
[1633075363084,1.13844665,3102.9,3102.1,3.22454]
[1633075363284,1.13844665,3102.9,3102.1,3.78089206]
[1633075363484,0.30447886,3102.8,3102.1,3.78089206]
[1633075363884,0.30447886,3102.8,3102.4,1.294]
[1633075364085,0.003,3103.0,3102.4,5.47793255]
[1633075364684,0.003,3103.0,3102.5,0.96401606]
[1633075364884,0.003,3103.0,3102.4,5.47793255]
[1633075365287,0.003,3103.0,3102.5,0.51141256]
[1633075365687,0.003,3103.0,3102.6,8.05977]
[1633075365887,0.003,3103.0,3102.6,3.22401]
[1633075366086,0.003,3103.0,3102.6,3.8513348]
[1633075366286,0.003,3103.0,3102.6,8.8513348]
[1633075366944,0.003,3103.0,3102.6,13.6870048]
[1633075367142,0.00517834,3103.0,3102.6,13.6870048]
[1633075367646,0.00517834,3103.0,3102.6,3.22401]
[1633075367844,1.86124841,3102.6,3102.2,0.02358068]
[1633075368048,3.79526228,3102.5,3102.3,6.4468]
[1633075368246,1.86124841,3102.6,3102.3,6.4468]
[1633075368247,2.98024841,3102.6,3102.3,6.4468]
[1633075368447,1.86124841,3102.6,3102.3,6.4468]
[1633075368847,3.80273409,3103.5,3102.3,6.4468]
[1633075368848,6.44679,3104.8,3103.5,0.82182098]
[1633075369047,0.006,3105.3,3103.5,0.82182098]
[1633075369048,1.294,3103.8,3103.5,0.82182098]
[1633075369248,0.85462124,3103.9,3103.5,0.82182098]
[1633075369655,0.85462124,3103.9,3103.6,0.02386949]
[1633075369856,1.17540424,3103.8,3103.6,0.02386949]
[1633075370260,0.003,3104.0,3103.6,0.02386949]
[1633075371258,1.86826389,3103.9,3103.3,2.06907047]
[1633075371459,6.70401389,3103.9,3103.3,2.06907047]
[1633075371857,6.70401389,3103.9,3103.0,0.003]
[1633075372462,5.62950186,3103.9,3103.0,0.003]
[1633075372657,0.741466,3103.4,3103.0,0.003]
[1633075372859,1.91534317,3103.3,3103.0,0.003]
[1633075373262,0.80296487,3103.4,3103.0,0.003]
[1633075373459,0.76626975,3103.4,3103.0,0.003]
[1633075373660,1.0776533,3103.3,3103.0,0.003]
[1633075373860,1.0,3103.6,3103.0,3.22663]
[1633075374061,0.003,3104.0,3103.3,1.294]
[1633075374262,0.02581562,3103.4,3103.0,0.003]
[1633075374662,0.31607693,3103.6,3103.2,0.92223172]
[1633075375061,0.31607693,3103.6,3103.4,1.294]
[1633075375266,0.003,3104.0,3103.3,0.01706195]
[1633075375462,0.02403402,3103.8,3103.3,0.01706195]
[1633075375663,0.003,3104.0,3103.3,4.85167195]
[1633075376063,0.003,3104.0,3103.4,3.2229543]
[1633075376267,0.003,3104.0,3103.9,0.91436391]
[1633075376662,0.003,3104.0,3103.7,3.22307]
[1633075377063,0.003,3104.0,3103.8,1.294]
[1633075377265,0.003,3104.0,3103.8,6.4437]
[1633075377664,0.00512034,3104.0,3103.8,6.4437]
[1633075377865,0.003,3104.5,3103.9,1.17489667]
[1633075378065,0.003,3104.5,3104.4,1.17303264]
[1633075378266,0.003,3104.5,3104.4,7.61673264]
[1633075378569,0.003,3104.5,3104.4,8.16197327]
[1633075378767,0.009,3105.5,3105.3,0.0373]
[1633075378972,0.009,3105.5,3105.4,6.4437]
[1633075379167,0.009,3105.5,3105.4,13.08020529]
[1633075379370,0.006,3106.3,3105.5,8.6]
[1633075379565,0.006,3106.3,3105.6,6.4437]
[1633075379966,0.31532021,3105.9,3105.6,6.4437]
[1633075380166,0.31532021,3105.9,3105.7,1.294]
[1633075380367,2.021e-05,3105.9,3105.8,11.28434205]
[1633075380567,0.006,3106.3,3105.9,5.0]
[1633075380868,0.006,3106.3,3105.9,6.4437]
[1633075381070,0.006,3106.3,3105.9,6.91792442]
[1633075381468,0.006,3106.3,3105.9,6.4437]
[1633075381667,11.92523347,3105.9,3105.3,0.00434876]
[1633075381868,0.0257381,3105.4,3105.3,0.00434876]
[1633075382272,4.02528067,3105.9,3105.3,1.29834876]
[1633075382468,4.02528067,3105.9,3105.3,0.00434876]
[1633075382469,4.02523347,3105.9,3105.3,0.00434876]
[1633075382669,5.03420756,3105.9,3105.3,3.22495876]
[1633075382869,4.02523347,3105.9,3105.3,8.22495876]
[1633075383070,4.02523347,3105.9,3105.3,3.22495876]
[1633075383271,4.02523347,3105.9,3105.3,4.19761636]
[1633075383470,4.02523347,3105.9,3105.3,9.19761636]
[1633075383674,4.02523347,3105.9,3105.6,4.83051]
[1633075383873,3.98893347,3105.9,3105.8,0.97257595]
[1633075384072,3.98893347,3105.9,3105.8,0.92257595]
[1633075384475,3.98893347,3105.9,3105.8,1.88050709]
[1633075384674,3.98893347,3105.9,3105.6,5.5217574]
[1633075385074,3.347e-05,3105.9,3105.7,1.294]
[1633075385277,3.347e-05,3105.9,3105.7,4.83071]
[1633075385476,0.17861039,3105.8,3105.7,9.05249921]
[1633075385679,0.17861039,3105.8,3105.7,12.5091139]
[1633075385876,0.17861039,3105.8,3105.7,12.00299279]
[1633075386078,3.347e-05,3105.9,3105.7,14.84329128]
[1633075386279,3.347e-05,3105.9,3105.8,0.15301941]
[1633075386481,3.347e-05,3105.9,3105.8,6.59281941]
[1633075387278,3.347e-05,3105.9,3105.8,26.82681941]
[1633075387478,3.347e-05,3105.9,3105.8,25.53281941]
[1633075387879,0.009,3106.0,3105.9,8.6]
[1633075388283,0.009,3106.0,3105.9,35.2738]
[1633075388479,0.006,3106.1,3106.0,5.0]
[1633075388685,0.006,3106.1,3106.0,11.4398]
[1633075388881,0.006,3106.1,3106.0,12.03211194]
[1633075389279,0.006,3106.1,3106.0,6.4398]
[1633075389882,0.006,3106.1,3105.8,0.15301941]
[1633075389883,8.6,3106.0,3105.8,0.15301941]
[1633075390081,1.47462606,3105.6,3105.0,1.95650865]
[1633075390283,1.95785741,3105.0,3104.5,0.003]
[1633075390483,0.0252957,3104.7,3104.0,0.006]
[1633075390683,0.0252957,3104.7,3103.9,0.006]
[1633075390684,5.40595241,3104.7,3103.9,0.006]
[1633075390882,3.22415,3104.2,3103.5,0.003]
[1633075391081,15.0,3104.0,3103.5,0.003]
[1633075391284,8.0633129,3103.4,3103.0,0.82171191]
[1633075391485,1.021,3103.2,3103.0,0.82171191]
[1633075391683,2.43608763,3103.2,3103.1,0.0759378]
[1633075392483,1.41508763,3103.2,3103.1,0.0759378]
[1633075392683,0.003,3104.0,3103.1,0.0759378]
[1633075392882,0.003,3104.0,3103.9,9.63008763]
[1633075393281,0.003,3104.0,3103.9,10.8038504]
[1633075393481,0.003,3104.0,3103.9,18.09853278]
[1633075393681,0.003,3104.0,3103.9,10.79253278]
[1633075393882,3.92525532,3105.0,3103.9,10.79253278]
[1633075394085,3.92525532,3105.0,3103.9,9.49853278]
[1633075394682,3.92525532,3105.0,3104.0,0.55667715]
[1633075394883,3.92525532,3105.0,3104.2,1.294]
[1633075395082,3.92525532,3105.0,3104.3,6.4435]
[1633075395882,0.95118047,3104.5,3104.3,6.4435]
[1633075396284,9.894,3104.4,3104.3,6.4435]
[1633075396485,8.2555794,3104.4,3104.3,6.4435]
[1633075396688,8.88618288,3104.4,3104.3,6.43224571]
[1633075396983,9.28618288,3104.4,3104.3,6.43224571]
[1633075397184,9.0,3104.4,3104.3,6.50841723]
[1633075397383,10.33071924,3104.4,3104.3,6.50841723]
[1633075397585,10.33071924,3104.4,3104.3,6.25845223]
[1633075397984,2.33071924,3104.4,3104.3,6.25845223]
[1633075398185,9.0,3104.4,3104.3,6.25845223]
[1633075398383,9.03814107,3104.4,3104.3,6.25845223]
[1633075398585,10.33214107,3104.4,3104.3,6.25845223]
[1633075398786,10.33407421,3104.4,3104.3,6.25845223]
[1633075398984,8.3,3104.3,3103.9,1.03008763]
[1633075399185,5.06060219,3104.1,3103.9,1.03008763]
[1633075399451,8.6,3103.9,3103.3,0.003]
[1633075399584,0.02481221,3103.6,3103.1,0.003]
[1633075399785,10.03904484,3103.2,3103.1,0.003]
[1633075399986,4.75,3103.1,3103.0,0.85471191]
[1633075400186,0.28702865,3103.1,3103.0,0.85471191]
[1633075400386,1.0,3103.1,3103.0,0.85471191]
[1633075400585,2.294,3103.1,3103.0,0.033]
[1633075400785,2.294,3103.1,3101.0,0.003]
[1633075400786,0.25971541,3102.3,3101.0,0.003]
[1633075400986,0.22662638,3102.2,3101.4,0.003]
[1633075401184,0.22662638,3102.2,3100.6,0.006]
[1633075401386,1.0,3102.3,3100.6,0.006]
[1633075401387,1.0,3102.3,3101.9,1.94464428]
[1633075401586,12.49366069,3102.4,3101.3,3.22545]
[1633075401785,12.49366069,3102.4,3101.4,0.003]
[1633075401990,0.29443156,3102.3,3101.4,0.003]
[1633075402450,1.29443156,3102.3,3101.4,0.003]
[1633075402590,5.10410594,3102.2,3101.4,0.003]
[1633075402791,5.10410594,3102.2,3101.0,0.003]
[1633075402792,1.95785741,3101.4,3101.0,0.003]
[1633075402991,1.95785741,3101.4,3100.9,0.003]
[1633075402992,0.02410687,3101.1,3100.9,0.003]
[1633075403190,4.19315741,3101.4,3099.6,0.009]
[1633075403390,7.74684244,3101.4,3099.7,6.4522]
[1633075403590,15.74684244,3101.4,3099.7,6.4522]
[1633075403788,0.88007555,3100.7,3100.2,1.70343805]
[1633075403988,0.88007555,3100.7,3100.3,6.4522]
[1633075404191,4.84137,3100.5,3100.3,6.4582]
[1633075404389,4.84137,3100.5,3100.3,6.4522]
[1633075404390,4.8725113,3100.4,3100.3,6.4522]
[1633075404593,4.8725113,3100.4,3100.3,1.95785741]
[1633075404594,4.5785113,3100.4,3100.3,1.95785741]
[1633075404790,1.0,3100.4,3100.3,0.006]
[1633075405192,8.03054069,3100.5,3100.3,6.451]
[1633075405456,0.6382757,3100.4,3100.3,0.87519534]
[1633075405593,1.29038247,3100.4,3100.3,0.87519534]
[1633075405791,1.0,3100.4,3100.3,1.70465113]
[1633075405992,0.03054069,3100.5,3100.3,1.70465113]
[1633075406192,2.764134,3101.8,3100.3,1.70465113]
[1633075406193,5.76926152,3101.7,3100.3,1.70465113]
[1633075406393,0.27807553,3100.3,3099.7,3.22702]
[1633075406594,0.27807553,3100.3,3099.8,0.003]
[1633075406595,2.06157553,3100.3,3099.8,0.003]
[1633075406793,0.31552021,3100.2,3099.8,0.003]
[1633075406994,0.27807553,3100.3,3098.5,0.012]
[1633075407198,1.78783922,3100.0,3098.8,1.13403967]
[1633075407493,1.78783922,3100.0,3098.8,0.71516444]
[1633075407494,5.16073123,3099.4,3098.8,0.71516444]
[1633075407692,5.16073123,3099.4,3098.9,0.009]
[1633075407693,3.79466648,3099.3,3098.9,0.009]
[1633075407893,1.0,3099.3,3098.9,0.009]
[1633075408093,1.31392792,3100.2,3098.9,0.009]
[1633075408094,0.03309634,3099.5,3098.9,0.009]
[1633075408293,8.0,3099.4,3099.0,0.01808965]
[1633075408496,3.600796,3100.1,3099.0,0.01808965]
[1633075408693,0.25818911,3100.0,3099.1,6.4595]
[1633075408895,0.25818911,3100.0,3099.1,6.3595]
[1633075409092,2.01379507,3099.6,3099.1,6.3595]
[1633075409295,0.25412673,3099.4,3099.1,6.3595]
[1633075409495,20.72174982,3099.3,3099.0,0.02108965]
[1633075409696,0.01613091,3099.1,3099.0,0.02108965]
[1633075410095,1.20548442,3099.2,3099.0,0.02108965]
[1633075411096,15.0,3099.1,3099.0,0.02108965]
[1633075411295,15.0,3099.1,3098.1,0.003]
[1633075411296,8.6,3099.0,3098.1,0.003]
[1633075411496,0.26667132,3098.8,3098.2,6.4554]
[1633075411696,0.0085684,3098.3,3098.2,6.4554]
[1633075411896,8.0,3098.3,3098.2,6.4554]
[1633075412095,8.0,3098.3,3098.2,6.4584]
[1633075412299,8.0,3098.3,3098.0,4.14086752]
[1633075412300,3.3,3098.2,3098.0,5.14086752]
[1633075412496,1.0,3098.1,3098.0,4.14086752]